[Event "*** Titled Tuesday Blitz"]
[Site "Chess.com"]
[Date "2019.03.05"]
[Round "2"]
[White "plouarzel"]
[Black "KyronGriffith"]
[Result "0-1"]
[WhiteElo "2576"]
[BlackElo "2368"]
[TimeControl "180+2"]
[EndTime "13:23:40 PST"]
[Termination "KyronGriffith won by checkmate"]

1. e4 {[%clk 0:03:01.9]} 1... c5 {[%clk 0:03:00.9]} 2. Nf3 {[%clk 0:03:02.4]}
2... d6 {[%clk 0:03:02.3]} 3. Bb5+ {[%clk 0:03:02.9]} 3... Nd7 {[%clk
0:03:03.2]} 4. O-O {[%clk 0:03:03.6]} 4... Nf6 {[%clk 0:03:02.9]} 5. Re1 {[%clk
0:03:04.9]} 5... a6 {[%clk 0:03:03.9]} 6. Bf1 {[%clk 0:03:05.6]} 6... b6 {[%clk
0:03:05.6]} 7. c4 {[%clk 0:03:04.5]} 7... Bb7 {[%clk 0:03:02.6]} 8. d4 {[%clk
0:03:04.8]} 8... Nxe4 {[%clk 0:02:59.4]} 9. d5 {[%clk 0:02:30.3]} 9... Nef6
{[%clk 0:02:56]} 10. Bf4 {[%clk 0:02:30.7]} 10... Qc7 {[%clk 0:02:44.6]} 11. h3
{[%clk 0:02:28.8]} 11... h6 {[%clk 0:02:41]} 12. Nc3 {[%clk 0:02:30.2]} 12... g5
{[%clk 0:02:31.6]} 13. Bh2 {[%clk 0:02:31.5]} 13... Rg8 {[%clk 0:02:32.9]} 14.
Bd3 {[%clk 0:02:10.5]} 14... g4 {[%clk 0:02:28.5]} 15. hxg4 {[%clk 0:02:12.4]}
15... Nxg4 {[%clk 0:02:30.3]} 16. Bg3 {[%clk 0:02:13.7]} 16... Bg7 {[%clk
0:02:24.1]} 17. Qe2 {[%clk 0:02:12.2]} 17... Nde5 {[%clk 0:02:21.2]} 18. Nxe5
{[%clk 0:02:11.9]} 18... Bxe5 {[%clk 0:02:17.9]} 19. Bxe5 {[%clk 0:01:33.2]}
19... Nxe5 {[%clk 0:02:19.8]} 20. f4 {[%clk 0:01:34.9]} 20... Ng6 {[%clk
0:02:12.1]} 21. Qf2 {[%clk 0:01:12.9]} 21... O-O-O {[%clk 0:02:10.8]} 22. a4
{[%clk 0:01:13.6]} 22... e5 {[%clk 0:01:58.8]} 23. Bxg6 {[%clk 0:00:56]} 23...
Rxg6 {[%clk 0:01:59.8]} 24. fxe5 {[%clk 0:00:57.4]} 24... dxe5 {[%clk
0:02:01.4]} 25. Ne4 {[%clk 0:00:56.5]} 25... Rdg8 {[%clk 0:01:56.5]} 26. Qf5+
{[%clk 0:00:49.7]} 26... Kb8 {[%clk 0:01:56.5]} 27. Re2 {[%clk 0:00:49.5]} 27...
Bc8 {[%clk 0:01:54.8]} 28. Qf1 {[%clk 0:00:35.2]} 28... f5 {[%clk 0:01:54]} 29.
Nc3 {[%clk 0:00:31.8]} 29... e4 {[%clk 0:01:52.8]} 30. a5 {[%clk 0:00:32.6]}
30... bxa5 {[%clk 0:01:37.6]} 31. Ra3 {[%clk 0:00:30.6]} 31... Ka7 {[%clk
0:01:30.5]} 32. b3 {[%clk 0:00:25.3]} 32... Rg3 {[%clk 0:01:23.1]} 33. Rea2
{[%clk 0:00:24.8]} 33... Rxc3 {[%clk 0:01:19.7]} 34. Rxa5 {[%clk 0:00:24.6]}
34... Rg6 {[%clk 0:01:11.3]} 35. Qa1 {[%clk 0:00:25.3]} 35... Rcg3 {[%clk
0:01:03.5]} 36. Qh8 {[%clk 0:00:20.9]} 36... f4 {[%clk 0:00:52.9]} 37. Qf8
{[%clk 0:00:21.6]} 37... f3 {[%clk 0:00:50.2]} 38. d6 {[%clk 0:00:22.4]} 38...
Rxg2+ {[%clk 0:00:51.3]} 39. Kh1 {[%clk 0:00:21.9]} 39... Rg1+ {[%clk 0:00:40]}
40. Kh2 {[%clk 0:00:21.7]} 40... R6g2+ {[%clk 0:00:41.9]} 41. Rxg2 {[%clk
0:00:19.6]} 41... Rxg2+ {[%clk 0:00:43.8]} 42. Kh1 {[%clk 0:00:20.3]} 42... Qxa5
{[%clk 0:00:41.1]} 43. Qxc8 {[%clk 0:00:21.9]} 43... Qe1# {[%clk 0:00:41.9]} 0-1

[Event "*** Titled Tuesday Blitz"]
[Site "Chess.com"]
[Date "2019.03.05"]
[Round "2"]
[White "aa175"]
[Black "kinga2008"]
[Result "0-1"]
[WhiteElo "1861"]
[BlackElo "1858"]
[TimeControl "180+2"]
[EndTime "13:23:47 PST"]
[Termination "kinga2008 won by checkmate"]

1. a3 {[%clk 0:02:56.3]} 1... g6 {[%clk 0:02:54.1]} 2. Nf3 {[%clk 0:02:47.7]}
2... Bg7 {[%clk 0:02:52.5]} 3. d4 {[%clk 0:02:44.5]} 3... d6 {[%clk 0:02:49.4]}
4. Bf4 {[%clk 0:02:43.7]} 4... Nd7 {[%clk 0:02:47.2]} 5. e3 {[%clk 0:02:45.1]}
5... e5 {[%clk 0:02:47.4]} 6. dxe5 {[%clk 0:02:47]} 6... dxe5 {[%clk 0:02:48]}
7. Bg3 {[%clk 0:02:48.6]} 7... f5 {[%clk 0:02:43.7]} 8. Bc4 {[%clk 0:02:48.5]}
8... e4 {[%clk 0:02:41.5]} 9. Qd5 {[%clk 0:02:47]} 9... Qe7 {[%clk 0:02:28.8]}
10. Bxc7 {[%clk 0:02:42.2]} 10... Ngf6 {[%clk 0:02:23.5]} 11. Qd1 {[%clk
0:01:58.5]} 11... Qc5 {[%clk 0:02:20.1]} 12. Nfd2 {[%clk 0:01:45.8]} 12... Qxc7
{[%clk 0:02:18.2]} 13. Nc3 {[%clk 0:01:46.4]} 13... a6 {[%clk 0:02:17]} 14. Ba2
{[%clk 0:01:46.7]} 14... Ne5 {[%clk 0:02:10.7]} 15. O-O {[%clk 0:01:46.7]} 15...
Neg4 {[%clk 0:02:07.2]} 16. f4 {[%clk 0:01:47.1]} 16... Nxe3 {[%clk 0:02:05.7]}
17. Qe2 {[%clk 0:01:47.2]} 17... Nxf1 {[%clk 0:02:05.3]} 18. Qxf1 {[%clk
0:01:49.1]} 18... Ng4 {[%clk 0:02:02]} 19. Nd5 {[%clk 0:01:46.1]} 19... Bd4+
{[%clk 0:02:01.6]} 20. Kh1 {[%clk 0:01:46.6]} 20... Nf2+ {[%clk 0:01:57.7]} 21.
Qxf2 {[%clk 0:01:47.3]} 21... Bxf2 {[%clk 0:01:53.3]} 22. Nxc7+ {[%clk
0:01:48.5]} 22... Kd8 {[%clk 0:01:38]} 23. Nxa8 {[%clk 0:01:50.4]} 23... b5
{[%clk 0:01:28.8]} 24. Rd1 {[%clk 0:01:48.5]} 24... Bd7 {[%clk 0:01:25.1]} 25.
Nf1 {[%clk 0:01:35]} 25... Kc8 {[%clk 0:01:12.4]} 26. Rd2 {[%clk 0:01:32.1]}
26... e3 {[%clk 0:01:07.5]} 27. Nb6+ {[%clk 0:01:30.6]} 27... Kb7 {[%clk
0:00:48.7]} 28. Rxd7+ {[%clk 0:01:22.5]} 28... Kxb6 {[%clk 0:00:49.6]} 29. Rd6+
{[%clk 0:01:16.9]} 29... Kc5 {[%clk 0:00:48]} 30. Re6 {[%clk 0:01:06.1]} 30...
Rd8 {[%clk 0:00:33.8]} 31. b4+ {[%clk 0:00:45.1]} 31... Kd4 {[%clk 0:00:23.9]}
32. Ng3 {[%clk 0:00:44.4]} 32... Kc3 {[%clk 0:00:18.4]} 33. Rc6+ {[%clk
0:00:31.9]} 33... Kb2 {[%clk 0:00:14]} 34. Ne2 {[%clk 0:00:06.5]} 34... Rd1+
{[%clk 0:00:12.4]} 35. Ng1 {[%clk 0:00:02.1]} 35... Rxg1# {[%clk 0:00:12.3]} 0-1

[Event "*** Titled Tuesday Blitz"]
[Site "Chess.com"]
[Date "2019.03.05"]
[Round "2"]
[White "andrzej"]
[Black "AdrianaNikolova"]
[Result "0-1"]
[WhiteElo "2266"]
[BlackElo "2453"]
[TimeControl "180+2"]
[EndTime "13:23:49 PST"]
[Termination "AdrianaNikolova won by resignation"]

1. d4 {[%clk 0:03:01.9]} 1... d5 {[%clk 0:02:59]} 2. c4 {[%clk 0:03:01.8]} 2...
c6 {[%clk 0:02:59.8]} 3. cxd5 {[%clk 0:03:02]} 3... cxd5 {[%clk 0:02:59.9]} 4.
Bf4 {[%clk 0:03:03.6]} 4... Nf6 {[%clk 0:03:00.1]} 5. e3 {[%clk 0:03:05.2]} 5...
Nc6 {[%clk 0:03:01.5]} 6. Nc3 {[%clk 0:03:04.5]} 6... a6 {[%clk 0:03:03.4]} 7.
Bd3 {[%clk 0:03:05.2]} 7... Bg4 {[%clk 0:02:50.1]} 8. Nge2 {[%clk 0:02:59.9]}
8... e6 {[%clk 0:02:39.2]} 9. Rc1 {[%clk 0:02:58.8]} 9... Bd6 {[%clk 0:02:32.9]}
10. f3 {[%clk 0:02:56.7]} 10... Bh5 {[%clk 0:02:15.9]} 11. O-O {[%clk
0:02:56.1]} 11... O-O {[%clk 0:02:08.9]} 12. Bxd6 {[%clk 0:02:51.7]} 12... Qxd6
{[%clk 0:02:08.9]} 13. Nf4 {[%clk 0:02:51.2]} 13... Bg6 {[%clk 0:02:09]} 14.
Bxg6 {[%clk 0:02:50.8]} 14... hxg6 {[%clk 0:02:10.9]} 15. Nd3 {[%clk 0:02:52]}
15... b5 {[%clk 0:02:06.5]} 16. Ne2 {[%clk 0:02:44.7]} 16... Na5 {[%clk
0:02:06.1]} 17. b3 {[%clk 0:02:38.5]} 17... Rac8 {[%clk 0:01:57.5]} 18. Qd2
{[%clk 0:02:39.6]} 18... Nc6 {[%clk 0:01:55]} 19. Nc5 {[%clk 0:02:38]} 19... Ne7
{[%clk 0:01:54.6]} 20. Nf4 {[%clk 0:02:36.2]} 20... g5 {[%clk 0:01:54.3]} 21.
Nfd3 {[%clk 0:02:36.8]} 21... Nd7 {[%clk 0:01:49.5]} 22. Nxd7 {[%clk 0:02:34.6]}
22... Qxd7 {[%clk 0:01:51.4]} 23. Nc5 {[%clk 0:02:29.4]} 23... Qa7 {[%clk
0:01:48.5]} 24. Qa5 {[%clk 0:02:16.8]} 24... Rc6 {[%clk 0:01:46.5]} 25. Rc2
{[%clk 0:02:04.7]} 25... Rfc8 {[%clk 0:01:47.1]} 26. Rfc1 {[%clk 0:02:05.4]}
26... e5 {[%clk 0:01:47.7]} 27. Kh1 {[%clk 0:01:56.4]} 27... exd4 {[%clk
0:01:47.5]} 28. exd4 {[%clk 0:01:58.3]} 28... Nf5 {[%clk 0:01:47.1]} 29. Qd2
{[%clk 0:01:57]} 29... f6 {[%clk 0:01:35.3]} 30. Qd3 {[%clk 0:01:57.9]} 30...
Nd6 {[%clk 0:01:04.8]} 31. h3 {[%clk 0:01:39.5]} 31... b4 {[%clk 0:01:04]} 32.
Nxa6 {[%clk 0:01:15.3]} 32... Rxc2 {[%clk 0:01:00.6]} 33. Rxc2 {[%clk
0:01:06.3]} 33... Rxc2 {[%clk 0:01:02.5]} 34. Nxb4 {[%clk 0:01:07]} 34... Rc1+
{[%clk 0:00:55.2]} 35. Kh2 {[%clk 0:01:08.1]} 35... Qe7 {[%clk 0:00:52.2]} 36.
Nxd5 {[%clk 0:01:07]} 36... Qe1 {[%clk 0:00:48.4]} 37. Qg6 {[%clk 0:00:48.4]}
37... Qg1+ {[%clk 0:00:40.9]} 38. Kg3 {[%clk 0:00:49.1]} 38... Qxd4 {[%clk
0:00:42.1]} 39. Ne7+ {[%clk 0:00:33.1]} 39... Kf8 {[%clk 0:00:40.6]} 0-1

[Event "*** Titled Tuesday Blitz"]
[Site "Chess.com"]
[Date "2019.03.05"]
[Round "2"]
[White "Fy_Rakotomaharo"]
[Black "Hikaru"]
[Result "0-1"]
[WhiteElo "2616"]
[BlackElo "3143"]
[TimeControl "180+2"]
[EndTime "13:23:50 PST"]
[Termination "Hikaru won by resignation"]

1. d4 {[%clk 0:03:01.9]} 1... Nf6 {[%clk 0:02:59.5]} 2. c4 {[%clk 0:03:00.8]}
2... e6 {[%clk 0:03:00.7]} 3. Nc3 {[%clk 0:03:01.8]} 3... Bb4 {[%clk 0:03:01.4]}
4. e3 {[%clk 0:03:03.2]} 4... O-O {[%clk 0:03:02.1]} 5. Ne2 {[%clk 0:03:04.3]}
5... c6 {[%clk 0:03:02.7]} 6. a3 {[%clk 0:03:02.1]} 6... Ba5 {[%clk 0:03:03.8]}
7. Qc2 {[%clk 0:03:02.9]} 7... d5 {[%clk 0:03:04.1]} 8. Ng3 {[%clk 0:03:04.5]}
8... dxc4 {[%clk 0:02:58.6]} 9. Bxc4 {[%clk 0:03:05.3]} 9... Nbd7 {[%clk
0:02:59.8]} 10. O-O {[%clk 0:03:03.7]} 10... e5 {[%clk 0:03:01]} 11. Ba2 {[%clk
0:03:01.8]} 11... Re8 {[%clk 0:02:49.9]} 12. Bd2 {[%clk 0:02:06.1]} 12... Bc7
{[%clk 0:02:46.9]} 13. Rad1 {[%clk 0:02:05.9]} 13... exd4 {[%clk 0:02:46.9]} 14.
exd4 {[%clk 0:02:07]} 14... Nb6 {[%clk 0:02:48.6]} 15. Bb1 {[%clk 0:01:59.2]}
15... Qd6 {[%clk 0:02:35.3]} 16. Bg5 {[%clk 0:01:47.6]} 16... g6 {[%clk
0:02:36.6]} 17. Rfe1 {[%clk 0:01:37.1]} 17... Bf5 {[%clk 0:02:33.2]} 18. Qc1
{[%clk 0:01:29.8]} 18... Bxb1 {[%clk 0:02:32.1]} 19. Qxb1 {[%clk 0:01:29.3]}
19... Nbd5 {[%clk 0:02:32.4]} 20. Nce4 {[%clk 0:01:24.4]} 20... Nxe4 {[%clk
0:02:32.5]} 21. Rxe4 {[%clk 0:01:26.3]} 21... f5 {[%clk 0:02:26.2]} 22. Rxe8+
{[%clk 0:01:21]} 22... Rxe8 {[%clk 0:02:28.1]} 23. Re1 {[%clk 0:01:22.3]} 23...
Re6 {[%clk 0:02:29]} 24. h4 {[%clk 0:01:02.4]} 24... Bb6 {[%clk 0:02:22.5]} 25.
Qd1 {[%clk 0:00:50.9]} 25... Kf7 {[%clk 0:02:10.6]} 26. Rxe6 {[%clk 0:00:49.2]}
26... Qxe6 {[%clk 0:02:12.5]} 27. h5 {[%clk 0:00:43.5]} 27... f4 {[%clk
0:02:13.5]} 28. Nf1 {[%clk 0:00:31.4]} 28... Qf5 {[%clk 0:02:09.2]} 29. hxg6+
{[%clk 0:00:23.9]} 29... hxg6 {[%clk 0:02:11.1]} 30. Bh4 {[%clk 0:00:25.4]}
30... Kg7 {[%clk 0:02:12.3]} 31. f3 {[%clk 0:00:11.1]} 31... Nc7 {[%clk
0:02:10.8]} 32. Bf2 {[%clk 0:00:11.7]} 32... Ne6 {[%clk 0:02:10.8]} 33. Qe2
{[%clk 0:00:06]} 33... Nxd4 {[%clk 0:02:07.2]} 34. Qe7+ {[%clk 0:00:06.3]} 34...
Qf7 {[%clk 0:02:08.3]} 35. Qxf7+ {[%clk 0:00:03.2]} 35... Kxf7 {[%clk
0:02:10.2]} 36. Kh1 {[%clk 0:00:04.5]} 36... Nb3 {[%clk 0:02:04.3]} 37. Bxb6
{[%clk 0:00:05.2]} 37... axb6 {[%clk 0:02:05.4]} 38. g3 {[%clk 0:00:05.8]} 38...
fxg3 {[%clk 0:02:04.6]} 39. Nxg3 {[%clk 0:00:07.7]} 39... Nd2 {[%clk 0:02:06.1]}
40. Kg2 {[%clk 0:00:07]} 40... Nc4 {[%clk 0:02:07.3]} 41. Ne4 {[%clk 0:00:07.7]}
41... Ke7 {[%clk 0:02:08.7]} 42. Kg3 {[%clk 0:00:06.1]} 42... Nxb2 {[%clk
0:02:09.6]} 43. Kg4 {[%clk 0:00:07.8]} 43... Nc4 {[%clk 0:02:10.6]} 44. a4
{[%clk 0:00:09.4]} 44... Nd6 {[%clk 0:02:05.2]} 45. Nc3 {[%clk 0:00:06.6]} 45...
Kf6 {[%clk 0:02:06.4]} 46. f4 {[%clk 0:00:07]} 46... b5 {[%clk 0:02:06.1]} 47.
axb5 {[%clk 0:00:07.9]} 47... Nxb5 {[%clk 0:02:07.6]} 48. Ne4+ {[%clk
0:00:09.1]} 48... Kg7 {[%clk 0:02:07.8]} 49. Nc5 {[%clk 0:00:09.4]} 49... Nd6
{[%clk 0:02:09.1]} 50. Kf3 {[%clk 0:00:07.1]} 50... Kf6 {[%clk 0:02:08.4]} 51.
Kg4 {[%clk 0:00:06.7]} 51... b5 {[%clk 0:02:03]} 52. Nd7+ {[%clk 0:00:07.8]}
52... Ke6 {[%clk 0:02:04.4]} 53. Ne5 {[%clk 0:00:08.4]} 53... Kd5 {[%clk
0:02:06]} 54. Nxg6 {[%clk 0:00:09.2]} 54... b4 {[%clk 0:02:05.4]} 55. Ne5 {[%clk
0:00:10]} 55... b3 {[%clk 0:02:06]} 56. Nd3 {[%clk 0:00:11]} 56... Kd4 {[%clk
0:02:06.7]} 57. Nb2 {[%clk 0:00:10.9]} 57... Nc4 {[%clk 0:02:06.8]} 58. Na4
{[%clk 0:00:08.2]} 58... b2 {[%clk 0:02:07.9]} 59. Nxb2 {[%clk 0:00:09.5]} 59...
Nxb2 {[%clk 0:02:09.8]} 60. f5 {[%clk 0:00:11.2]} 60... Nd3 {[%clk 0:02:11.7]}
61. f6 {[%clk 0:00:11.5]} 61... Ne5+ {[%clk 0:02:13.6]} 62. Kf5 {[%clk
0:00:13.1]} 62... c5 {[%clk 0:02:15.5]} 0-1

[Event "*** Titled Tuesday Blitz"]
[Site "Chess.com"]
[Date "2019.03.05"]
[Round "2"]
[White "quesfr"]
[Black "payto1"]
[Result "1-0"]
[WhiteElo "2229"]
[BlackElo "2096"]
[TimeControl "180+2"]
[EndTime "13:23:51 PST"]
[Termination "quesfr won by checkmate"]

1. e4 {[%clk 0:03:01.9]} 1... e6 {[%clk 0:02:58.8]} 2. d4 {[%clk 0:03:02.2]}
2... d5 {[%clk 0:03:00.3]} 3. Nc3 {[%clk 0:03:02.7]} 3... Nf6 {[%clk 0:03:00.6]}
4. exd5 {[%clk 0:03:03.3]} 4... exd5 {[%clk 0:03:01.1]} 5. Bg5 {[%clk
0:03:04.3]} 5... Be7 {[%clk 0:03:00.9]} 6. Qd2 {[%clk 0:03:05.4]} 6... O-O
{[%clk 0:02:59.7]} 7. O-O-O {[%clk 0:03:01.6]} 7... Bf5 {[%clk 0:02:53.4]} 8.
Bd3 {[%clk 0:03:00.1]} 8... Bxd3 {[%clk 0:02:38.6]} 9. Qxd3 {[%clk 0:03:01.2]}
9... Nbd7 {[%clk 0:02:36.4]} 10. Nge2 {[%clk 0:02:57.8]} 10... c6 {[%clk
0:02:28.1]} 11. Ng3 {[%clk 0:02:57.2]} 11... h6 {[%clk 0:02:25.2]} 12. Bf4
{[%clk 0:02:48.8]} 12... Re8 {[%clk 0:01:57.7]} 13. Nf5 {[%clk 0:02:42.7]} 13...
Bf8 {[%clk 0:01:57.7]} 14. f3 {[%clk 0:02:43]} 14... Nh5 {[%clk 0:01:48.1]} 15.
Bd2 {[%clk 0:02:36]} 15... Qc7 {[%clk 0:01:45]} 16. Ne2 {[%clk 0:02:28.4]} 16...
Nb6 {[%clk 0:01:37.9]} 17. g4 {[%clk 0:02:26]} 17... Nf6 {[%clk 0:01:38]} 18.
Bf4 {[%clk 0:02:19.3]} 18... Qd8 {[%clk 0:01:36.5]} 19. g5 {[%clk 0:02:17.6]}
19... Nh5 {[%clk 0:01:27]} 20. gxh6 {[%clk 0:01:55]} 20... Nxf4 {[%clk
0:01:24.1]} 21. Nxf4 {[%clk 0:01:54.1]} 21... Qg5 {[%clk 0:01:09.8]} 22. hxg7
{[%clk 0:01:35.7]} 22... Qxf4+ {[%clk 0:01:09.5]} 23. Kb1 {[%clk 0:01:36.8]}
23... Be7 {[%clk 0:01:04.5]} 24. h4 {[%clk 0:01:28.6]} 24... Bf6 {[%clk
0:00:57.6]} 25. h5 {[%clk 0:01:26.3]} 25... Bxg7 {[%clk 0:00:21.1]} 26. Rhg1
{[%clk 0:01:25.6]} 26... Nc4 {[%clk 0:00:15.6]} 27. Rxg7+ {[%clk 0:01:11.4]}
27... Kh8 {[%clk 0:00:14.8]} 28. Rg4 {[%clk 0:01:11.1]} 28... Nd2+ {[%clk
0:00:08.1]} 29. Ka1 {[%clk 0:01:11.1]} 29... Qxf3 {[%clk 0:00:04.2]} 30. Qxd2
{[%clk 0:01:08.1]} 30... Qxg4 {[%clk 0:00:02.1]} 31. Nd6 {[%clk 0:00:23.4]}
31... Re7 {[%clk 0:00:02.1]} 32. Rf1 {[%clk 0:00:21.5]} 32... Qg5 {[%clk
0:00:02.1]} 33. Qxg5 {[%clk 0:00:21.9]} 33... Re1+ {[%clk 0:00:04]} 34. Rxe1
{[%clk 0:00:21.9]} 34... Rg8 {[%clk 0:00:05.9]} 35. Qh6# {[%clk 0:00:22.6]} 1-0

[Event "*** Titled Tuesday Blitz"]
[Site "Chess.com"]
[Date "2019.03.05"]
[Round "2"]
[White "Walter_White_Poland"]
[Black "vgyogi"]
[Result "1-0"]
[WhiteElo "2212"]
[BlackElo "2084"]
[TimeControl "180+2"]
[EndTime "13:23:51 PST"]
[Termination "Walter_White_Poland won by resignation"]

1. e4 {[%clk 0:03:01.9]} 1... d6 {[%clk 0:02:59.9]} 2. d4 {[%clk 0:03:02.1]}
2... Nf6 {[%clk 0:03:01.3]} 3. Nc3 {[%clk 0:03:02.9]} 3... Nbd7 {[%clk
0:03:02.4]} 4. f4 {[%clk 0:03:00.2]} 4... e5 {[%clk 0:02:54.3]} 5. Nf3 {[%clk
0:03:00.7]} 5... exd4 {[%clk 0:02:49.9]} 6. Qxd4 {[%clk 0:02:58.2]} 6... Be7
{[%clk 0:02:45.7]} 7. Bd2 {[%clk 0:02:53.3]} 7... O-O {[%clk 0:02:45.2]} 8.
O-O-O {[%clk 0:02:53.9]} 8... c6 {[%clk 0:02:36.2]} 9. g4 {[%clk 0:02:53.6]}
9... Qb6 {[%clk 0:02:30.6]} 10. g5 {[%clk 0:02:49.7]} 10... Ng4 {[%clk
0:02:12.9]} 11. Rg1 {[%clk 0:02:22.6]} 11... Nf2 {[%clk 0:02:01.3]} 12. Re1
{[%clk 0:01:49.8]} 12... Nc5 {[%clk 0:02:02.1]} 13. Kb1 {[%clk 0:01:11]} 13...
Nh3 {[%clk 0:01:29.9]} 14. Rg3 {[%clk 0:01:03.6]} 14... Nxf4 {[%clk 0:01:18.1]}
15. Bxf4 {[%clk 0:01:03.9]} 15... Ne6 {[%clk 0:01:19.6]} 16. Qxb6 {[%clk
0:01:02.6]} 16... axb6 {[%clk 0:01:20.5]} 17. Be3 {[%clk 0:01:03.1]} 17... b5
{[%clk 0:01:21.7]} 18. Nd4 {[%clk 0:00:50.2]} 18... b4 {[%clk 0:01:12.3]} 19.
Nd1 {[%clk 0:00:36.1]} 19... Nc5 {[%clk 0:01:13.3]} 20. Bd3 {[%clk 0:00:34.7]}
20... Re8 {[%clk 0:01:06.5]} 21. Nf2 {[%clk 0:00:34]} 21... Bf8 {[%clk
0:01:06.9]} 22. Rd1 {[%clk 0:00:31.1]} 22... d5 {[%clk 0:01:02.4]} 23. exd5
{[%clk 0:00:30.2]} 23... cxd5 {[%clk 0:01:03.4]} 24. Nb3 {[%clk 0:00:27]} 24...
Ne6 {[%clk 0:00:53.8]} 25. h4 {[%clk 0:00:21.2]} 25... Bd7 {[%clk 0:00:49]} 26.
Ng4 {[%clk 0:00:20.4]} 26... Bd6 {[%clk 0:00:43.1]} 27. Rgg1 {[%clk 0:00:19.3]}
27... Bc6 {[%clk 0:00:39.9]} 28. Nd4 {[%clk 0:00:19]} 28... Be5 {[%clk
0:00:38.1]} 29. Nxe6 {[%clk 0:00:18.1]} 29... Rxe6 {[%clk 0:00:37.7]} 30. Nxe5
{[%clk 0:00:18.8]} 30... Rxe5 {[%clk 0:00:39]} 31. Bd4 {[%clk 0:00:19.9]} 31...
Ree8 {[%clk 0:00:37]} 32. Rde1 {[%clk 0:00:20.5]} 32... Bd7 {[%clk 0:00:27.5]}
33. Bc5 {[%clk 0:00:20.6]} 33... Be6 {[%clk 0:00:27.2]} 34. Bxb4 {[%clk
0:00:20.7]} 34... Rac8 {[%clk 0:00:26.2]} 35. b3 {[%clk 0:00:19.9]} 35... Red8
{[%clk 0:00:25.6]} 36. Bd2 {[%clk 0:00:20.6]} 36... d4 {[%clk 0:00:22.6]} 37.
Re5 {[%clk 0:00:21]} 37... Rd5 {[%clk 0:00:20.8]} 38. Rxd5 {[%clk 0:00:21.1]}
38... Bxd5 {[%clk 0:00:21.7]} 39. Re1 {[%clk 0:00:21.9]} 39... Be6 {[%clk
0:00:22.7]} 40. Kb2 {[%clk 0:00:21.8]} 40... Rc5 {[%clk 0:00:22]} 41. a4 {[%clk
0:00:22.1]} 1-0

[Event "*** Titled Tuesday Blitz"]
[Site "Chess.com"]
[Date "2019.03.05"]
[Round "2"]
[White "DawidCzerw"]
[Black "marianokar"]
[Result "0-1"]
[WhiteElo "2258"]
[BlackElo "2431"]
[TimeControl "180+2"]
[EndTime "13:23:55 PST"]
[Termination "marianokar won by resignation"]

1. d4 {[%clk 0:03:01.9]} 1... Nf6 {[%clk 0:02:59.9]} 2. c4 {[%clk 0:03:02.5]}
2... e6 {[%clk 0:03:00.2]} 3. Nf3 {[%clk 0:03:02.2]} 3... d5 {[%clk 0:03:00]} 4.
g3 {[%clk 0:03:02.8]} 4... Be7 {[%clk 0:02:58.9]} 5. Bg2 {[%clk 0:03:03.7]} 5...
O-O {[%clk 0:03:00.5]} 6. O-O {[%clk 0:03:05.1]} 6... dxc4 {[%clk 0:03:00.5]} 7.
Qc2 {[%clk 0:03:05.9]} 7... b6 {[%clk 0:03:01.5]} 8. Ne5 {[%clk 0:02:56.5]} 8...
Qxd4 {[%clk 0:03:01.4]} 9. Bxa8 {[%clk 0:02:45.7]} 9... Qxe5 {[%clk 0:03:02.1]}
10. Bg2 {[%clk 0:02:35.9]} 10... b5 {[%clk 0:02:50]} 11. Bf4 {[%clk 0:02:34.5]}
11... Qc5 {[%clk 0:02:50.7]} 12. Be3 {[%clk 0:02:29.4]} 12... Qh5 {[%clk
0:02:47.3]} 13. Bxa7 {[%clk 0:02:26.4]} 13... Na6 {[%clk 0:02:46.3]} 14. a4
{[%clk 0:02:11.7]} 14... Nb4 {[%clk 0:02:21.9]} 15. Qc1 {[%clk 0:02:06.9]} 15...
Qxe2 {[%clk 0:02:19.2]} 16. Nc3 {[%clk 0:02:03]} 16... Qh5 {[%clk 0:02:11.8]}
17. Nxb5 {[%clk 0:02:02.4]} 17... Ng4 {[%clk 0:02:08.4]} 18. h3 {[%clk
0:02:00.7]} 18... Ne5 {[%clk 0:02:09.8]} 19. Nxc7 {[%clk 0:01:43.5]} 19... Nf3+
{[%clk 0:01:19.2]} 20. Bxf3 {[%clk 0:01:01.8]} 20... Qxf3 {[%clk 0:01:19]} 21.
Qe3 {[%clk 0:01:01.4]} 21... Qc6 {[%clk 0:01:10.5]} 22. Nb5 {[%clk 0:01:01.3]}
22... Bb7 {[%clk 0:01:05]} 23. f3 {[%clk 0:01:00.8]} 23... Nc2 {[%clk
0:01:05.9]} 24. Qb6 {[%clk 0:00:59]} 24... Nxa1 {[%clk 0:01:05.6]} 25. Qxc6
{[%clk 0:00:55.4]} 25... Bxc6 {[%clk 0:01:06.4]} 26. Rxa1 {[%clk 0:00:56.1]}
26... Ra8 {[%clk 0:01:06.9]} 27. Kg2 {[%clk 0:00:27.2]} 27... e5 {[%clk
0:00:59.8]} 28. h4 {[%clk 0:00:11]} 28... f5 {[%clk 0:00:58.2]} 29. h5 {[%clk
0:00:04.2]} 29... Kf7 {[%clk 0:00:57.3]} 30. Kf1 {[%clk 0:00:03.9]} 30... Bxf3
{[%clk 0:00:56.1]} 31. Bf2 {[%clk 0:00:02.4]} 31... Bc6 {[%clk 0:00:53.4]} 32.
Nc3 {[%clk 0:00:02.1]} 32... Bb4 {[%clk 0:00:52.3]} 33. Kg1 {[%clk 0:00:02.6]}
33... Bf3 {[%clk 0:00:48.1]} 34. Kf1 {[%clk 0:00:03]} 34... Bxh5 {[%clk
0:00:46.7]} 35. Ke1 {[%clk 0:00:03.8]} 35... Bf3 {[%clk 0:00:47]} 36. Kf1 {[%clk
0:00:04.9]} 36... Bc6 {[%clk 0:00:47.6]} 37. Be1 {[%clk 0:00:05.7]} 37... g5
{[%clk 0:00:45.4]} 38. Rd1 {[%clk 0:00:06]} 38... Ke6 {[%clk 0:00:44.1]} 39. Ke2
{[%clk 0:00:05.9]} 39... f4 {[%clk 0:00:44.1]} 40. gxf4 {[%clk 0:00:06.8]} 40...
gxf4 {[%clk 0:00:44.6]} 41. Bf2 {[%clk 0:00:08.3]} 41... Bxc3 {[%clk 0:00:44.5]}
42. bxc3 {[%clk 0:00:10.2]} 42... Rxa4 {[%clk 0:00:45.2]} 43. Rh1 {[%clk
0:00:11]} 43... Bxh1 {[%clk 0:00:44.4]} 0-1